bitfinex/quotes_BTCUSD_20240721
["timestamp","ask_amount","ask_price","bid_price","bid_amount"]
[1721602617371,0.00084,68118.0,68117.0,1.21565186]
[1721602617798,0.00084,68118.0,68117.0,1.22365186]
[1721602618175,0.00084,68118.0,68117.0,1.30605186]
[1721602618423,0.00084,68118.0,68117.0,1.42796144]
[1721602618771,0.00084,68118.0,68117.0,1.43296144]
[1721602619255,0.00084,68118.0,68117.0,1.42796144]
[1721602619446,0.00084,68118.0,68117.0,1.43596144]
[1721602619873,0.00084,68118.0,68117.0,1.42796144]
[1721602620232,0.00084,68118.0,68117.0,1.02043986]
[1721602620392,0.00084,68118.0,68117.0,0.87723986]
[1721602620603,0.00084,68118.0,68117.0,0.56862786]
[1721602620811,0.00084,68118.0,68117.0,0.58062786]
[1721602621122,0.00084,68118.0,68117.0,0.86223986]
[1721602622636,0.00084,68118.0,68117.0,0.87423986]
[1721602624586,0.00084,68118.0,68117.0,0.70254291]
[1721602624813,0.440148,68118.0,68117.0,0.48224749]
[1721602625013,0.440148,68118.0,68117.0,0.36033244]
[1721602625014,0.586952,68118.0,68117.0,0.36033244]
[1721602625157,0.293344,68118.0,68117.0,0.36033244]
[1721602625355,0.586952,68118.0,68117.0,0.36033244]
[1721602625779,0.586952,68118.0,68117.0,0.35233244]
[1721602626058,0.586952,68118.0,68117.0,0.35533244]
[1721602626258,0.293344,68118.0,68117.0,0.35533244]
[1721602626665,0.293344,68118.0,68117.0,0.35233244]
[1721602626870,0.293344,68118.0,68117.0,0.34033244]
[1721602627689,0.293344,68118.0,68117.0,0.34633244]
[1721602628337,0.293344,68118.0,68117.0,0.34033244]
[1721602628511,0.586952,68118.0,68117.0,0.34033244]
[1721602629120,0.00184,68118.0,68117.0,0.34033244]
[1721602629355,0.00184,68118.0,68117.0,0.46225202]
[1721602629490,0.00184,68118.0,68117.0,0.46225195]
[1721602630052,0.00184,68118.0,68117.0,0.53574137]
[1721602630243,0.00084,68118.0,68117.0,0.53574137]
[1721602630418,0.147644,68118.0,68117.0,0.53574137]
[1721602630820,0.00084,68118.0,68117.0,0.53574137]
[1721602631509,0.00084,68118.0,68117.0,0.53674137]
[1721602632413,0.00084,68118.0,68117.0,0.68354737]
[1721602632535,0.00084,68118.0,68117.0,0.76274737]
[1721602632739,0.00084,68118.0,68117.0,1.05635921]
[1721602632999,0.00084,68118.0,68117.0,1.12025921]
[1721602633694,0.00084,68118.0,68117.0,0.68354721]
[1721602633963,0.00084,68118.0,68117.0,0.53674121]
[1721602635685,0.147644,68118.0,68117.0,0.41482186]
[1721602635884,0.147644,68118.0,68117.0,0.53674234]
[1721602636547,0.441252,68118.0,68117.0,0.53674234]
[1721602637734,0.441252,68118.0,68117.0,0.41482186]
[1721602637735,1.40348791,68118.0,68117.0,0.41482186]
[1721602637883,1.40348791,68118.0,68117.0,0.34133244]
[1721602638086,1.45580342,68118.0,68117.0,0.34133244]
[1721602640045,1.89499176,68118.0,68117.0,0.30235]
[1721602640253,1.77241142,68118.0,68117.0,0.30235]
[1721602640433,1.88483324,68118.0,68117.0,0.30235]
[1721602640635,1.79694135,68118.0,68117.0,0.30235]
[1721602640835,1.90680621,68118.0,68117.0,0.30235]
[1721602641040,2.34852956,68118.0,68117.0,0.30235]
[1721602641200,2.39852956,68118.0,68117.0,0.30235]
[1721602641424,2.39852956,68118.0,68117.0,0.30135]
[1721602641625,2.39952956,68118.0,68117.0,0.30135]
[1721602641831,2.37499963,68118.0,68117.0,0.30135]
[1721602642043,2.25329163,68118.0,68117.0,0.30135]
[1721602642315,2.38229163,68118.0,68117.0,0.30235]
[1721602642667,2.4340807,68118.0,68117.0,0.30135]
[1721602643061,2.4360807,68118.0,68117.0,0.30235]
[1721602643223,2.4370807,68118.0,68117.0,0.30335]
[1721602643427,2.38029163,68118.0,68117.0,0.30235]
[1721602643628,2.38029163,68118.0,68117.0,0.30135]
[1721602643830,2.38129163,68118.0,68117.0,0.30235]
[1721602644879,2.38329163,68118.0,68117.0,0.30335]
[1721602645113,2.51552828,68118.0,68117.0,0.30335]
[1721602645257,2.45451072,68118.0,68117.0,0.30335]
[1721602645458,2.02889862,68118.0,68117.0,0.30335]
[1721602645655,2.08991618,68118.0,68117.0,0.30335]
[1721602648205,2.08991619,68118.0,68117.0,0.30335]
[1721602649174,1.50079063,68118.0,68117.0,0.30335]
[1721602649312,1.6103093,68118.0,68117.0,0.30335]
[1721602649712,1.58838984,68118.0,68117.0,0.30335]
[1721602649918,2.09349784,68118.0,68117.0,0.30335]
[1721602650135,2.09149784,68118.0,68117.0,0.30235]
[1721602650677,2.11549784,68118.0,68117.0,0.30335]
[1721602651011,2.09409435,68118.0,68117.0,0.30235]
[1721602651223,2.00141142,68118.0,68117.0,0.30235]
[1721602651758,2.00041142,68118.0,68117.0,0.30235]
[1721602652133,2.00241142,68118.0,68117.0,0.30335]
[1721602652335,2.00849502,68118.0,68117.0,0.30335]
[1721602652537,2.00649502,68118.0,68117.0,0.30235]
[1721602653000,2.00549502,68118.0,68117.0,0.30135]
[1721602653276,2.02773567,68118.0,68117.0,0.30335]
[1721602653473,2.02673567,68118.0,68117.0,0.30235]
[1721602653925,2.02773567,68118.0,68117.0,0.30335]
[1721602654416,2.00849502,68118.0,68117.0,0.30335]
[1721602654655,2.00649502,68118.0,68117.0,0.30235]
[1721602655126,2.00849502,68118.0,68117.0,0.30335]
[1721602655349,1.69188702,68118.0,68117.0,0.30335]
[1721602656688,1.70469618,68118.0,68117.0,0.30335]
[1721602656912,1.72769618,68118.0,68117.0,0.30335]
[1721602658472,1.73378152,68118.0,68117.0,0.30335]
[1721602659675,1.72769618,68118.0,68117.0,0.30335]
[1721602659882,1.73378146,68118.0,68117.0,0.30335]
[1721602660085,1.73378136,68118.0,68117.0,0.30335]
[1721602660981,2.02738936,68118.0,68117.0,0.30335]
[1721602661889,2.07738936,68118.0,68117.0,0.30335]
[1721602662114,2.02738936,68118.0,68117.0,0.30335]
[1721602662307,2.07738936,68118.0,68117.0,0.30335]
[1721602662699,2.02738936,68118.0,68117.0,0.30335]
[1721602663142,2.0983321,68118.0,68117.0,0.30335]
[1721602663398,2.07335416,68118.0,68117.0,0.30335]
[1721602663578,2.14852787,68118.0,68117.0,0.30335]
[1721602663780,2.47045069,68118.0,68117.0,0.30335]
[1721602664368,2.34355069,68118.0,68117.0,0.30335]
[1721602666370,2.43109874,68118.0,68117.0,0.30335]
[1721602666841,2.33746552,68118.0,68117.0,0.30335]
[1721602667048,2.34354993,68118.0,68117.0,0.30335]
[1721602667829,2.49051258,68118.0,68117.0,0.30335]
[1721602668847,2.19690458,68118.0,68117.0,0.30335]
[1721602669286,2.34354993,68118.0,68117.0,0.30335]
[1721602669420,2.34714335,68118.0,68117.0,0.30335]
[1721602669655,2.10353535,68118.0,68117.0,0.30335]
[1721602670058,2.03085374,68118.0,68117.0,0.30335]
[1721602670270,2.10380244,68118.0,68117.0,0.30335]
[1721602670485,2.32446186,68118.0,68117.0,0.30335]
[1721602670688,2.12683819,68118.0,68117.0,0.30335]
[1721602671902,2.27380084,68118.0,68117.0,0.30335]
[1721602672690,2.12683819,68118.0,68117.0,0.30335]
[1721602673426,2.12688278,68118.0,68117.0,0.30335]
[1721602673834,2.21446947,68118.0,68117.0,0.30335]
[1721602675471,2.12688278,68118.0,68117.0,0.30335]
[1721602676029,2.21449947,68118.0,68117.0,0.30335]
[1721602676443,1.43291722,68118.0,68117.0,0.30335]
[1721602676620,1.49752654,68118.0,68117.0,0.44255]
[1721602677010,1.35616729,68118.0,68117.0,0.36445]
[1721602677336,1.35416729,68118.0,68117.0,0.36345]
[1721602677545,1.35316729,68118.0,68117.0,0.36245]
[1721602677740,1.35516729,68118.0,68117.0,0.36345]
[1721602677949,1.35616729,68118.0,68117.0,0.36445]
[1721602678343,1.39999105,68118.0,68117.0,0.36445]
[1721602678794,1.35616729,68118.0,68117.0,0.36445]
[1721602678991,1.37716729,68118.0,68117.0,0.36345]
[1721602679450,1.35380342,68118.0,68117.0,0.36445]
[1721602679639,1.3690177,68118.0,68117.0,0.36445]
[1721602679873,1.35988913,68118.0,68117.0,0.36445]
[1721602680106,1.41286632,68118.0,68117.0,0.36445]
[1721602681173,1.36901779,68118.0,68117.0,0.36445]
[1721602681732,1.3690179,68118.0,68117.0,0.36445]
[1721602682363,0.72461157,68118.0,68117.0,0.36445]
[1721602682727,0.1152601,68118.0,68117.0,0.48133244]
[1721602682928,0.05615551,68118.0,68117.0,0.48133244]
[1721602683129,0.00384,68118.0,68117.0,0.70162786]
[1721602683334,0.00184,68118.0,68117.0,0.70062786]
[1721602683749,0.00384,68118.0,68117.0,0.70162786]
[1721602683957,0.00284,68118.0,68117.0,0.70062786]
[1721602684168,0.00284,68118.0,68117.0,1.07883986]
[1721602684389,0.00384,68118.0,68117.0,1.37345186]
[1721602684612,0.00284,68118.0,68117.0,1.37245186]
[1721602685027,0.00384,68118.0,68117.0,1.37245186]
[1721602685227,0.00184,68118.0,68117.0,1.37145186]
[1721602685565,0.00384,68118.0,68117.0,1.37145186]
[1721602687585,0.00384,68118.0,68117.0,1.66506386]
[1721602688200,0.00384,68118.0,68117.0,1.78696641]
[1721602688521,0.00184,68118.0,68117.0,1.78696641]
[1721602688724,0.00084,68118.0,68117.0,1.78696641]
[1721602688925,0.00084,68118.0,68117.0,1.79096641]
[1721602689320,0.00084,68118.0,68117.0,1.79796641]
[1721602689529,0.00084,68118.0,68117.0,1.67206386]
[1721602690249,0.00084,68118.0,68117.0,1.68006386]
[1721602690452,0.00084,68118.0,68117.0,1.67306386]
[1721602690649,0.00084,68118.0,68117.0,1.68506386]
[1721602691114,0.00084,68118.0,68117.0,1.67306386]
[1721602691279,0.00084,68118.0,68117.0,1.68606386]
[1721602691465,0.00084,68118.0,68117.0,1.67806386]
[1721602691879,0.00084,68118.0,68117.0,1.68806386]
[1721602694367,0.00084,68118.0,68117.0,1.73806386]
[1721602694636,0.00084,68118.0,68117.0,1.68806386]
[1721602699735,0.00084,68118.0,68117.0,1.30985186]
[1721602699948,0.00084,68118.0,68117.0,1.39445186]
[1721602706358,0.00084,68118.0,68117.0,1.51635804]
[1721602707089,0.00084,68118.0,68117.0,1.516364]
[1721602707325,0.00084,68118.0,68117.0,0.782334]
[1721602707540,0.00084,68118.0,68117.0,0.48524458]
[1721602707751,0.73657191,68118.0,68117.0,0.36333244]
[1721602707946,1.03017991,68118.0,68117.0,0.36333244]
[1721602708148,1.10787991,68118.0,68117.0,0.36333244]
[1721602708364,1.40148791,68118.0,68117.0,0.32435]
[1721602708581,1.42448791,68118.0,68117.0,0.31435]
[1721602708793,1.42448791,68118.0,68117.0,0.30335]
[1721602708994,1.42448791,68118.0,68117.0,0.30835]
[1721602709413,1.42448791,68118.0,68117.0,0.30635]
[1721602709689,1.42648791,68118.0,68117.0,0.30635]
[1721602710083,1.42448791,68118.0,68117.0,0.30635]
[1721602710294,1.33988791,68118.0,68117.0,0.30135]
[1721602710630,1.34890839,68118.0,68117.0,0.30635]
[1721602710877,1.34890839,68118.0,68117.0,0.30135]
[1721602710878,1.40124641,68118.0,68117.0,0.30135]
[1721602711052,1.34890839,68118.0,68117.0,0.30135]
[1721602711252,1.35190839,68118.0,68117.0,0.30235]
[1721602711601,1.40425293,68118.0,68117.0,0.30235]
[1721602711982,1.41025293,68118.0,68117.0,0.30435]
[1721602712199,1.40425293,68118.0,68117.0,0.30235]
[1721602712559,1.40125293,68118.0,68117.0,0.30135]
[1721602712795,1.40425293,68118.0,68117.0,0.30235]
[1721602713062,1.79786093,68118.0,68117.0,0.30235]
[1721602713235,1.81306978,68118.0,68117.0,0.30235]
[1721602713411,1.79486093,68118.0,68117.0,0.40135]
[1721602713611,1.79486093,68118.0,68117.0,0.40335]
[1721602713612,1.81506893,68118.0,68117.0,0.40335]
[1721602713932,1.81306893,68118.0,68117.0,0.40235]
[1721602714139,1.80394413,68118.0,68117.0,0.40235]
[1721602714336,1.80594413,68118.0,68117.0,0.40335]
[1721602714537,1.79786093,68118.0,68117.0,0.40235]
[1721602714946,1.79986093,68118.0,68117.0,0.40335]
[1721602715148,1.79786093,68118.0,68117.0,0.40235]
[1721602715582,1.79986093,68118.0,68117.0,0.40335]
[1721602715784,1.79686093,68118.0,68117.0,0.40235]
[1721602716208,1.79986093,68118.0,68117.0,0.40335]
[1721602716420,1.50625293,68118.0,68117.0,0.40335]
[1721602716649,0.34900845,68118.0,68117.0,0.44133244]
[1721602716859,0.59327191,68118.0,68117.0,0.44233244]
[1721602717542,0.58827191,68118.0,68117.0,0.44033244]
[1721602717768,0.59127191,68118.0,68117.0,0.44133244]
[1721602717944,0.59327191,68118.0,68117.0,0.44233244]
[1721602718144,0.59127191,68118.0,68117.0,0.44133244]
[1721602718590,0.59327191,68118.0,68117.0,0.44233244]
[1721602718908,0.59027191,68118.0,68117.0,0.44133244]
[1721602719313,0.59327191,68118.0,68117.0,0.44233244]
[1721602719590,0.00584,68118.0,68117.0,0.44233244]
[1721602719854,0.152644,68118.0,68117.0,0.44233244]
[1721602720186,0.446252,68118.0,68117.0,0.44233244]
[1721602721621,0.152644,68118.0,68117.0,0.44233244]
[1721602723600,0.446252,68118.0,68117.0,0.44233244]
[1721602724367,0.88687991,68118.0,68117.0,0.44233244]
[1721602726352,0.00584,68118.0,68117.0,0.44233244]
[1721602726754,0.00584,68118.0,68117.0,0.52463244]
[1721602727369,0.00584,68118.0,68117.0,0.73423844]
[1721602727571,0.00584,68118.0,68117.0,0.58743244]
[1721602731535,0.00584,68118.0,68117.0,0.50513244]
[1721602731738,0.152644,68118.0,68117.0,0.50513244]
[1721602731941,0.152644,68118.0,68117.0,0.44233244]
[1721602734287,0.446252,68118.0,68117.0,0.44233244]
[1721602735654,0.152644,68118.0,68117.0,0.44233244]
[1721602736212,0.446252,68118.0,68117.0,0.44233244]
[1721602738602,0.293608,68118.0,68117.0,0.44233244]
[1721602739556,0.440412,68118.0,68117.0,0.44233244]
[1721602740186,0.506112,68118.0,68117.0,0.44233244]
[1721602740384,0.94673991,68118.0,68117.0,0.40335]
[1721602740599,1.03123991,68118.0,68117.0,0.44233244]
[1721602741176,0.88103991,68118.0,68117.0,0.44233244]
[1721602742533,0.58743191,68118.0,68117.0,0.44233244]
[1721602743141,0.58743191,68118.0,68117.0,0.50493244]
[1721602744775,0.440375,68124.0,68123.0,0.03898244]
[1721602744980,0.440375,68124.0,68123.0,0.33299244]
[1721602744981,0.58739491,68124.0,68123.0,0.33299244]
[1721602745383,0.88097691,68124.0,68123.0,0.33299244]
[1721602745595,1.0770574,68124.0,68123.0,0.29401]
[1721602745844,1.02477691,68124.0,68123.0,0.33299244]
[1721602746248,0.73119291,68124.0,68123.0,0.33299244]
[1721602746628,1.02477491,68124.0,68123.0,0.33299244]
[1721602746827,1.02477491,68124.0,68123.0,0.29401]
[1721602747054,1.02477491,68124.0,68123.0,0.29501]
[1721602747248,1.02477491,68124.0,68123.0,0.33299244]
[1721602747450,0.73119291,68124.0,68123.0,0.29501]
[1721602747746,1.02477491,68124.0,68123.0,0.29501]
[1721602747947,0.73119291,68124.0,68123.0,0.29401]
[1721602748176,1.02477491,68124.0,68123.0,0.29501]
[1721602748604,1.07706728,68124.0,68123.0,0.29501]
[1721602749046,1.16156728,68124.0,68123.0,0.29501]
[1721602749267,1.45514928,68124.0,68123.0,0.29501]
[1721602749900,1.47814928,68124.0,68123.0,0.29501]
[1721602750104,1.55914087,68124.0,68123.0,0.29501]
[1721602750519,1.49335262,68124.0,68123.0,0.29501]
[1721602751523,1.58107029,68124.0,68123.0,0.29501]
[1721602752596,1.49335262,68124.0,68123.0,0.29501]
[1721602752992,1.47814928,68124.0,68123.0,0.29501]
[1721602753205,1.49335558,68124.0,68123.0,0.29501]
[1721602755657,1.58114352,68124.0,68123.0,0.29501]
[1721602755859,1.49335558,68124.0,68123.0,0.29501]
[1721602756069,1.47814928,68124.0,68123.0,0.29501]
[1721602756276,1.60309592,68124.0,68123.0,0.29501]
[1721602756475,1.48727344,68124.0,68123.0,0.29501]
[1721602756677,1.60309219,68124.0,68123.0,0.29501]
[1721602756880,1.94667419,68124.0,68123.0,0.29501]
[1721602757135,1.93693753,68124.0,68123.0,0.29501]
[1721602757334,1.88693753,68124.0,68123.0,0.29501]
[1721602757553,1.50885553,68124.0,68123.0,0.29501]
[1721602757766,1.50885553,68124.0,68123.0,0.29401]
[1721602757767,1.59335553,68124.0,68123.0,0.29401]
[1721602757979,1.70309764,68124.0,68123.0,0.29401]
[1721602758219,1.61859764,68124.0,68123.0,0.29601]
[1721602758381,1.50885553,68124.0,68123.0,0.29601]
[1721602759326,1.50885528,68124.0,68123.0,0.29601]
[1721602762405,1.50885579,68124.0,68123.0,0.29601]
[1721602764038,1.44485579,68124.0,68123.0,0.29601]
[1721602765435,1.42964928,68124.0,68123.0,0.29501]
[1721602765804,1.44885713,68124.0,68123.0,0.29601]
[1721602766466,1.44885713,68124.0,68123.0,0.29501]
[1721602768339,1.45485713,68124.0,68123.0,0.29601]
[1721602768760,1.44573242,68124.0,68123.0,0.29601]
[1721602768969,1.45485717,68124.0,68123.0,0.29601]
[1721602769179,1.45485701,68124.0,68123.0,0.29601]
[1721602769598,1.44885701,68124.0,68123.0,0.29501]
[1721602770004,1.45485701,68124.0,68123.0,0.29601]
[1721602770618,1.45569701,68124.0,68123.0,0.29601]
[1721602770830,1.51739701,68124.0,68123.0,0.29601]
[1721602771023,1.51339701,68124.0,68123.0,0.29501]
[1721602771245,1.51339701,68124.0,68123.0,0.29601]
[1721602771443,1.51739701,68124.0,68123.0,0.29601]
[1721602771764,1.50218928,68124.0,68123.0,0.29601]
[1721602772016,1.51739653,68124.0,68123.0,0.29601]
[1721602775043,1.50218928,68124.0,68123.0,0.29601]
[1721602775240,1.5173967,68124.0,68123.0,0.29601]
[1721602776798,1.51131345,68124.0,68123.0,0.29601]
[1721602777003,1.51739623,68124.0,68123.0,0.29601]
[1721602778286,1.51131345,68124.0,68123.0,0.29601]
[1721602778548,1.51739238,68124.0,68123.0,0.29601]
[1721602778751,1.37589238,68124.0,68123.0,0.29601]
[1721602780402,1.46039238,68124.0,68123.0,0.29601]
[1721602781652,1.46039403,68124.0,68123.0,0.29601]
[1721602782075,1.46039408,68124.0,68123.0,0.29601]
[1721602784547,1.45431213,68124.0,68123.0,0.29601]
[1721602784750,1.46039403,68124.0,68123.0,0.29601]
[1721602784947,1.43739403,68124.0,68123.0,0.44121]
[1721602785802,1.43739403,68124.0,68123.0,0.29601]
[1721602787130,1.54339403,68124.0,68123.0,0.29601]
[1721602787526,1.46039403,68124.0,68123.0,0.29601]
[1721602787841,1.45431213,68124.0,68123.0,0.29601]
[1721602788071,1.46039522,68124.0,68123.0,0.29601]
[1721602790234,0.66573122,68124.0,68123.0,0.36161]
[1721602790442,0.66573122,68124.0,68123.0,0.43681]
[1721602790667,0.95931322,68124.0,68123.0,0.43681]
[1721602791122,0.94410728,68124.0,68123.0,0.43681]
[1721602791328,0.95931718,68124.0,68123.0,0.43681]
[1721602792172,0.95931718,68124.0,68123.0,0.36161]
[1721602792346,0.95931718,68124.0,68123.0,0.29601]
[1721602793979,0.95931729,68124.0,68123.0,0.29601]
[1721602794175,0.94410728,68124.0,68123.0,0.29601]
[1721602794361,0.95931748,68124.0,68123.0,0.29601]
[1721602794783,0.95931748,68124.0,68123.0,0.36161]
[1721602797560,0.95931775,68124.0,68123.0,0.36161]
[1721602798716,0.95931775,68124.0,68123.0,0.40059244]
[1721602800615,1.04242138,68124.0,68123.0,0.33499244]
[1721602800840,0.95932138,68124.0,68123.0,0.33499244]
[1721602801022,0.95323574,68124.0,68123.0,0.33499244]
[1721602801249,0.95932138,68124.0,68123.0,0.33499244]
[1721602801452,0.95932138,68124.0,68123.0,0.47299244]
[1721602801453,0.07834647,68124.0,68123.0,0.47299244]
[1721602801669,0.06313237,68124.0,68123.0,0.91337144]
[1721602801902,0.01084,68124.0,68123.0,1.0352794]
[1721602802662,0.00684,68124.0,68123.0,1.0342794]
[1721602802893,0.00684,68124.0,68123.0,1.03326961]
[1721602803089,0.00084,68124.0,68123.0,1.03326961]
[1721602803317,0.00584,68124.0,68123.0,0.74068361]
[1721602803493,0.00584,68124.0,68123.0,0.61878544]
[1721602803692,0.00584,68124.0,68123.0,0.47099244]
[1721602803893,0.00084,68124.0,68123.0,0.47099244]
[1721602804272,0.149631,68124.0,68123.0,0.47499244]
[1721602804653,0.149631,68124.0,68123.0,0.47099244]
[1721602804932,0.149631,68124.0,68123.0,0.47199244]
[1721602805124,0.147631,68124.0,68123.0,0.47199244]
[1721602805330,0.147631,68124.0,68123.0,0.47599244]
[1721602805733,0.147631,68124.0,68123.0,0.47199244]
[1721602805944,0.149631,68124.0,68123.0,0.47199244]
[1721602806145,0.149631,68124.0,68123.0,0.47099244]
[1721602806557,0.153631,68124.0,68123.0,0.47099244]
[1721602806804,0.447213,68124.0,68123.0,0.47099244]
[1721602807135,0.441213,68124.0,68123.0,0.47099244]
[1721602807370,0.445213,68124.0,68123.0,0.47099244]
[1721602807616,0.447213,68124.0,68123.0,0.47099244]
[1721602807952,0.441213,68124.0,68123.0,0.47099244]
[1721602808166,0.45602599,68124.0,68123.0,0.47099244]
[1721602809892,0.45602599,68124.0,68123.0,0.33299244]
[1721602809893,0.74560799,68124.0,68123.0,0.33299244]
[1721602810065,0.45502599,68124.0,68123.0,0.33299244]
[1721602810704,0.45202599,68124.0,68123.0,0.33299244]
[1721602810877,0.45602599,68124.0,68123.0,0.33299244]
[1721602811080,0.45402599,68124.0,68123.0,0.33299244]
[1721602811329,0.45102599,68124.0,68123.0,0.33299244]
[1721602811913,0.148631,68124.0,68123.0,0.33299244]
[1721602812172,0.148631,68124.0,68123.0,0.47379244]
[1721602812763,0.00484,68124.0,68123.0,0.47379244]
[1721602813176,0.00184,68124.0,68123.0,0.62058544]
[1721602813568,0.00184,68124.0,68123.0,0.47379244]
[1721602814083,0.00484,68124.0,68123.0,0.47379244]
[1721602814243,0.00384,68124.0,68123.0,0.62058544]
[1721602814448,0.00084,68124.0,68123.0,0.47379244]
[1721602814685,0.00084,68124.0,68123.0,0.47479244]
[1721602814905,0.00084,68124.0,68123.0,0.47379244]
[1721602815319,0.00084,68124.0,68123.0,0.47679244]
[1721602817377,0.147631,68124.0,68123.0,0.47679244]
[1721602817590,0.147631,68124.0,68123.0,0.33599244]
[1721602818336,0.441213,68124.0,68123.0,0.33599244]
[1721602818513,0.147631,68124.0,68123.0,0.33599244]
[1721602820254,0.441213,68124.0,68123.0,0.33599244]
[1721602821352,0.293582,68124.0,68123.0,0.33599244]
[1721602821700,0.440373,68124.0,68123.0,0.33599244]
[1721602822996,0.445373,68124.0,68123.0,0.33599244]
[1721602823613,0.440373,68124.0,68123.0,0.33299244]
[1721602823844,0.443373,68124.0,68123.0,0.33299244]
[1721602824257,0.444373,68124.0,68123.0,0.33299244]
[1721602824463,0.150791,68124.0,68123.0,0.33299244]
[1721602825296,0.147791,68124.0,68123.0,0.33299244]
[1721602825497,0.150791,68124.0,68123.0,0.33299244]
[1721602825695,0.004,68124.0,68123.0,0.47599244]
[1721602825936,0.150791,68124.0,68123.0,0.47599244]
[1721602826072,0.001,68124.0,68123.0,0.47599244]
[1721602826269,0.003,68124.0,68123.0,0.47599244]
[1721602826901,0.146789,68125.0,68124.0,0.03898244]
[1721602827123,0.146789,68125.0,68124.0,0.33298244]
[1721602827936,0.146786,68127.0,68126.0,0.03898244]
[1721602828140,0.146786,68127.0,68126.0,0.33297244]
[1721602828542,0.15560219,68129.0,68128.0,0.03898244]
[1721602828746,0.146782,68129.0,68128.0,0.33297244]
[1721602829351,0.293501,68143.0,68133.0,0.24825344]
[1721602829553,0.00607573,68142.0,68133.0,0.77940286]
[1721602829733,0.00607573,68142.0,68133.0,1.07294586]
[1721602829949,0.00886973,68143.0,68133.0,1.36648886]
[1721602830174,0.00607573,68142.0,68133.0,1.36648886]
[1721602830379,0.00886973,68144.0,68133.0,1.36648886]
[1721602830602,0.00584,68134.0,68133.0,1.36748886]
[1721602830805,0.00584,68134.0,68133.0,1.48937625]
[1721602831010,0.00584,68134.0,68133.0,1.49537625]
[1721602831209,0.00584,68134.0,68133.0,1.48937625]
[1721602831614,0.00584,68134.0,68133.0,1.50137625]
[1721602831818,0.00584,68134.0,68133.0,1.48937625]
[1721602832013,0.00584,68134.0,68133.0,0.59752983]
[1721602832307,0.00084,68134.0,68133.0,0.59652983]
[1721602832891,0.00084,68134.0,68133.0,0.60252983]
[1721602833469,0.00084,68134.0,68133.0,0.48564244]
[1721602833774,0.00084,68134.0,68133.0,0.49164244]
[1721602833979,0.00084,68134.0,68133.0,0.48064244]
[1721602834184,0.00084,68134.0,68133.0,0.48964244]
[1721602834589,0.00084,68134.0,68133.0,0.48064244]
[1721602835005,0.00084,68134.0,68133.0,0.48464244]
[1721602835206,0.00084,68134.0,68133.0,0.39944244]
[1721602835696,0.147609,68134.0,68133.0,0.39944244]
[1721602835901,0.147609,68134.0,68133.0,0.29896]
[1721602835902,0.96240691,68134.0,68133.0,0.29896]
[1721602836337,0.96240691,68134.0,68133.0,0.29796]
[1721602836550,0.96240691,68134.0,68133.0,0.30296]
[1721602836962,0.96240691,68134.0,68133.0,0.29396]
[1721602837167,1.25594591,68134.0,68133.0,0.29396]
[1721602837400,1.25594591,68134.0,68133.0,0.29696]
[1721602839401,1.26094591,68134.0,68133.0,0.29796]
[1721602839605,1.26094591,68134.0,68133.0,0.29496]
[1721602839778,1.25594591,68134.0,68133.0,0.29396]
[1721602839987,1.25994591,68134.0,68133.0,0.29396]
[1721602840188,1.26094591,68134.0,68133.0,0.29496]
[1721602840389,1.26094591,68134.0,68133.0,0.29596]
[1721602840556,1.26494591,68134.0,68133.0,0.29596]
[1721602840749,1.26494591,68134.0,68133.0,0.29496]
[1721602841074,1.26494591,68134.0,68133.0,0.29596]
[1721602841075,1.26894591,68134.0,68133.0,0.29596]
[1721602841498,1.26894591,68134.0,68133.0,0.29496]
[1721602841499,1.26094591,68134.0,68133.0,0.29496]
[1721602841679,1.25594591,68134.0,68133.0,0.29396]
[1721602841877,1.25594591,68134.0,68133.0,0.29496]
[1721602842229,0.96740691,68134.0,68133.0,0.29496]
[1721602842435,0.88670691,68134.0,68133.0,0.33394244]
[1721602843113,0.88170691,68134.0,68133.0,0.33294244]
[1721602843580,0.89070691,68134.0,68133.0,0.33494244]
[1721602843779,0.89070691,68134.0,68133.0,0.33394244]
[1721602843780,0.88670691,68134.0,68133.0,0.33394244]
[1721602844201,0.89070691,68134.0,68133.0,0.33494244]
[1721602844413,0.59716791,68134.0,68133.0,0.33394244]
[1721602844746,0.59616791,68134.0,68133.0,0.33394244]
[1721602845149,0.60116791,68134.0,68133.0,0.33494244]
[1721602845992,0.15285991,68134.0,68133.0,0.33394244]
[1721602846407,0.30362891,68134.0,68133.0,0.33494244]
[1721602847085,0.30362891,68134.0,68133.0,0.48254244]
[1721602847305,0.29962891,68134.0,68133.0,0.48154244]
[1721602847519,0.30062891,68134.0,68133.0,0.48154244]
[1721602847938,0.29562891,68134.0,68133.0,0.48054244]
[1721602848160,0.14885991,68134.0,68133.0,0.48154244]
[1721602848393,0.15385991,68134.0,68133.0,0.48154244]
[1721602848803,0.14885991,68134.0,68133.0,0.48054244]
[1721602849237,0.15185991,68134.0,68133.0,0.48054244]
[1721602849482,0.00484,68134.0,68133.0,0.48054244]
[1721602849697,0.00484,68134.0,68133.0,1.21439944]
[1721602850795,0.00384,68134.0,68133.0,1.21439944]
[1721602851022,0.00084,68134.0,68133.0,1.21439944]
[1721602851237,0.00184,68134.0,68133.0,1.21439944]
[1721602851447,0.00484,68134.0,68133.0,0.92085644]
[1721602851929,0.00184,68134.0,68133.0,0.92085644]
[1721602852339,0.00184,68134.0,68133.0,0.92685644]
[1721602852560,0.00084,68134.0,68133.0,0.92685644]
[1721602852906,0.00084,68134.0,68133.0,0.93585644]
[1721602853156,0.00084,68134.0,68133.0,1.22939944]
[1721602854772,0.00084,68134.0,68133.0,1.64482715]
[1721602855432,0.00084,68134.0,68133.0,1.63882715]
[1721602855644,0.00084,68134.0,68133.0,1.50794244]
[1721602855916,0.00084,68134.0,68133.0,1.64682492]
[1721602856147,0.00084,68134.0,68133.0,1.64682453]
[1721602858757,0.00084,68134.0,68133.0,1.69682453]
[1721602859004,0.00084,68134.0,68133.0,1.74682453]
[1721602859461,0.00084,68134.0,68133.0,1.69682453]
[1721602860262,0.00084,68134.0,68133.0,1.64682453]
[1721602860487,0.00084,68134.0,68133.0,1.69682453]
[1721602860729,0.00084,68134.0,68133.0,1.64682453]
[1721602861183,0.00084,68134.0,68133.0,1.64681645]
[1721602861382,0.00084,68134.0,68133.0,1.74681645]
[1721602861595,0.00084,68134.0,68133.0,1.79681645]
[1721602862066,0.00084,68134.0,68133.0,1.74681645]
[1721602863111,0.00084,68134.0,68133.0,1.79681645]